Workbook

Sheet Лист5
I1: Budjet jarayonining ochiqligini ta’minlash maqsadida rasmiy veb-saytlarda ma’lumotlarni joylashtirish tartibi to‘g‘risidagi nizomga 5-ILOVA
A4: 2025-yil 1-aprel xolatiga Navoiy viloyat adliya boshqarmasi tomonidan kam baholi va tez eskiruvchi buyumlar xarid qilish uchun o‘tkazilgan tanlovlar (tendyerlar) va amalga oshirilgan davlat xaridlari to‘g‘risidagi
A5: MA’LUMOTLAR
A6: T/r | B6: Hisobot davri | C6: Xarid qilingan tovarlar va xizmatlar nomi | D6: Moliyalashtirish manbasi* | E6: Xarid jarayonini amalga oshirish turi | F6: Lot/shartnoma raqami | G6: Pudratchi to‘g‘risida ma’lumotlar | I6: Xarid qilinayotgan tovarlar (xizmatlar) o‘lchov birligi (imkoniyat darajasida) | J6: Xarid qilinayotgan tovarlar (xizmatlar) miqdori (hajmi) | K6: Bitim (shartnoma) bo‘yicha tovarlar (xizmatlar) bir birligi narxi (tarifi) | L6: Xarid qilingan tovarlar (xizmatlar) jami miqdori (hajmi) qiymati (ming so‘m)
G7: Pudratchi nomi | H7: Korxona STIRi
A8: 1 | B8: 1-chorak | C8: Tabiiy gaz | D8: budjet | E8: Yagona etkazib beruvchi | F8: №213042072/1 Lot251100103701360 | G8: HUDUDGAZTA`MINOT AJ | H8: 306605769 | I8: м^3 | J8: 3000 | K8: 1800 | L8: =+K8*J8 -> 5400000
A9: =+A8+1 -> 2 | C9: Ichimlik suvi | D9: budjet | E9: Yagona etkazib beruvchi | F9: №G`az0013 Lot251100103749514 | G9: Навоий сув таминот МЧЖ | H9: 300024824 | I9: м^3 | J9: 253 | K9: 7280 | L9: =+K9*J9 -> 1841840
A10: =+A9+1 -> 3 | C10: Elektron hujjat aylantirish tizimi | D10: budjet | E10: Yagona etkazib beruvchi | F10: №12833-2025/IJRO Lot251100103704339 | G10: UNICON-SOFT МЧЖ | H10: 305109680 | I10: xizmat | J10: 12 | K10: 267600 | L10: =+K10*J10 -> 3211200
A11: 4 | C11: Internet xizmati | D11: budjet | E11: PQ-3953 | F11: №12_3507/3340 Lot251100243711553 | G11: O`ZBEKTELEKOM AKSIYADORLIK JAMIYATI | H11: 203366731 | I11: xizmat | J11: 12 | K11: 3445250 | L11: =+K11*J11 -> 41343000
A12: 5 | C12: Tabiiy gaz | D12: budjet | E12: Yagona etkazib beruvchi | F12: №213056284/1 Lot251100103730315 | G12: HUDUDGAZTA`MINOT AJ | H12: 306605769 | I12: м^3 | J12: 14977 | K12: 1800 | L12: 26958600
A13: 6 | C13: Telefon xizmati | D13: budjet | E13: PQ-3953 | F13: №160 Lot251100243732543 | G13: O`ZBEKTELEKOM AKSIYADORLIK JAMIYATI | H13: 203366731 | I13: xizmat | J13: 7 | K13: 170500 | L13: 1193500
A14: 7 | C14: Telefon xizmati | D14: budjet | E14: PQ-3953 | F14: №1918995159 Lot251100243732438 | G14: O`ZBEKTELEKOM AKSIYADORLIK JAMIYATI | H14: 203366731 | I14: xizmat | J14: 9 | K14: 396000 | L14: 3564000
A15: 8 | C15: Benzin (92) | D15: budjetdan tashqari | E15: PQ-3953 | F15: №63 Lot251100423685084 | G15: "Навоий нефть базаси"МЧЖ | H15: 200002538 | I15: t. | J15: 2.97 | K15: 12721621 | L15: =+K15*J15 -> 37783214.37
A16: 9 | C16: Tabbiy siqilgan gaz (metan) | D16: budjetdan tashqari | E16: PQ-3953 | F16: №1 Lot251100423688205 | G16: Karmana Alfa GaZ service МЧЖ | H16: 302189830 | I16: куб.м | J16: =+L16/K16 -> 2090 | K16: 3950 | L16: 8255500
A17: 10 | C17: Tabbiy siqilgan gaz (metan) | D17: budjetdan tashqari | E17: PQ-3953 | F17: №52/25 Lot251100423687585 | G17: Мухаммад Али Кувончи МЧЖ | H17: 301293237 | I17: куб.м | J17: 2090 | K17: 3800 | L17: =+K17*J17 -> 7942000
A18: 11 | C18: Tabbiy siqilgan gaz (metan) | D18: budjetdan tashqari | E18: PQ-3953 | F18: №28/25TADL Lot251100423688876 | G18: ООО АСКОМЖ-ЗАРАФШОН | H18: 305917515 | I18: куб.м | J18: 4180 | K18: 3950 | L18: 16511000
A19: 12 | C19: Tabbiy siqilgan gaz (metan) | D19: budjetdan tashqari | E19: PQ-3953 | F19: №1 - Н?АДЛ Lot251100423688566 | G19: OOO SPUTNIK AVTO SERVIS | H19: 301601073 | I19: куб.м | J19: 4180 | K19: 3950 | L19: 16511000
A20: 13 | C20: Tabbiy siqilgan gaz (metan) | D20: budjetdan tashqari | E20: PQ-3953 | F20: №9 Lot241100422470971 | G20: Зарафшон Файз Оил МЧЖ | H20: 301711048 | I20: куб.м | J20: 10450 | K20: 3950 | L20: 41277500
A21: 14 | C21: Tabbiy siqilgan gaz (metan) | D21: budjetdan tashqari | E21: PQ-3953 | F21: №32/2025-НАДЛ Lot251100423689060 | G21: METAN GAZ NUROTA мчж | H21: 302356393 | I21: куб.м | J21: 2090 | K21: 3950 | L21: 8255500
A22: 15 | C22: Tabbiy siqilgan gaz (metan) | D22: budjetdan tashqari | E22: PQ-3953 | F22: №24 Lot251100423689201 | G22: Uchquduq oil gaz invest МЧЖ | H22: 304966582 | I22: куб.м | J22: 2090 | K22: 3950 | L22: =+K22*J22 -> 8255500
A23: 16 | C23: Tabbiy siqilgan gaz (metan) | D23: budjetdan tashqari | E23: PQ-3953 | F23: №?АДЛ 5 Lot251100423688292 | G23: Зарафшон авто газМЧЖ | H23: 302025267 | I23: куб.м | J23: 2090 | K23: 3950 | L23: 8255500
A24: 17 | C24: Maxsus aloqa xizmati | D24: budjetdan tashqari | E24: PQ-3953 | F24: №NAV24 Lot241100242480363 | G24: Республика махсус алока богламаси ДУК | H24: 201440547 | I24: xizmat | J24: 12 | K24: 6500000 | L24: =+K24*J24 -> 78000000
A25: 18 | C25: Tabiiy gaz | D25: budjetdan tashqari | E25: Yagona etkazib beruvchi | F25: №213080039/1 Lot251100103701337 | G25: HUDUDGAZTA`MINOT AJ | H25: 306605769 | I25: м^3 | J25: 5200 | K25: 1800 | L25: =+K25*J25 -> 9360000
A26: 19 | C26: Tabiiy gaz | D26: budjetdan tashqari | E26: Yagona etkazib beruvchi | F26: №213032418/1 Lot251100103701471 | G26: HUDUDGAZTA`MINOT AJ | H26: 306605769 | I26: м^3 | J26: 10000 | K26: 1800 | L26: =+K26*J26 -> 18000000
A27: 20 | C27: Gibrid ochta xizmati | D27: budjetdan tashqari | E27: PQ-3953 | F27: №49/25 GIBR Lot251100103711889 | G27: "O`ZBEKISTON POCHTASI" АЖ | H27: 200833833 | I27: xizmat | J27: 12 | K27: 8000000 | L27: =+K27*J27 -> 96000000
A28: 21 | C28: Telefon xizmati | D28: budjetdan tashqari | E28: PQ-3953 | F28: №41900658 Lot251100243711818 | G28: ООО Coscom | H28: 201788904 | I28: xizmat | J28: 12 | K28: 400000 | L28: =+K28*J28 -> 4800000
A29: 22 | C29: Bannerga chop etish xizmati | D29: budjetdan tashqari | E29: Elektron do`kon | F29: №310721885 Lot25311008006872 | G29: STROY KOMBINAT MCHJ | H29: 310721885 | I29: xizmat | J29: 22 | K29: 45000 | L29: =+K29*J29 -> 990000
A30: 23 | C30: GPS xizmati | D30: budjetdan tashqari | E30: PQ-3953 | F30: №7049/1-U Lot251100253749711 | G30: "INTERNATIONAL MONITORING GROUP " МЧЖ | H30: 207041571 | I30: xizmat | J30: 144 | K30: 45360 | L30: =+K30*J30 -> 6531840
A31: 24 | C31: Ichimlik suvi va kanalizasiya | D31: budjetdan tashqari | E31: Yagona etkazib beruvchi | F31: №178 Lot251100103749624 | G31: Навоий сув таминот МЧЖ | H31: 300024824 | I31: m3 | J31: 1200 | K31: 12432 | L31: 14918400
A32: 25 | C32: Ichimlik suvi va kanalizasiya | D32: budjetdan tashqari | E32: Yagona etkazib beruvchi | F32: №955ADL-25 Lot251100103749729 | G32: Навоий сув таминот МЧЖ | H32: 300024824 | I32: m3 | J32: 1380 | K32: 12432 | L32: =+K32*J32 -> 17156160
A33: 26 | C33: Qalam | D33: budjetdan tashqari | E33: Elektron do`kon | F33: №2960252 Lot251110083502070 | G33: ЁКУБ ДОВУД Маъсулияти Чекланган Жамият | H33: 200861450 | I33: dona | J33: 20 | K33: 1299 | L33: =+K33*J33 -> 25980
A34: 27 | C34: Skrepka | D34: budjetdan tashqari | E34: Elektron do`kon | F34: №2961137 Lot251110083502172 | G34: Navoiy Armada МЧЖ | H34: 303473446 | I34: dona | J34: 20 | K34: 3500 | L34: =+K34*J34 -> 70000
A35: 28 | C35: Marker | D35: budjetdan tashqari | E35: Elektron do`kon | F35: №2961270 Lot251110083502255 | G35: FOR DISCOVERY FUTURE MCHJ | H35: 311266969 | I35: dona | J35: 20 | K35: 12000 | L35: =+K35*J35 -> 240000
A36: 29 | C36: Stend tayyorlash xizmati | D36: budjetdan tashqari | E36: Elektron do`kon | F36: №2961871 Lot251110083507426 | G36: IDEA GRAPHICS OK | H36: 306370350 | I36: xizmat | J36: 15 | K36: 50000 | L36: =+K36*J36 -> 750000
A37: 30 | C37: Ruchka | D37: budjetdan tashqari | E37: Elektron do`kon | F37: №B1068138 Lot25311008007723 | G37: ООО AZIZ-LAZIZ GOLDEN GROUP | H37: 308396499 | I37: dona | J37: 50 | K37: 3000 | L37: =+K37*J37 -> 150000
A38: 31 | C38: Bumaga dlya zametok | D38: budjetdan tashqari | E38: Elektron do`kon | F38: №B1068325 Lot25311008009038 | G38: Канц-Маркет тижорат корхонаси | H38: 204387372 | I38: dona | J38: 20 | K38: 15000 | L38: =+K38*J38 -> 300000
A39: 32 | C39: Skoba | D39: budjetdan tashqari | E39: Elektron do`kon | F39: №B1068418 Lot25311008009010 | G39: HAFELE CO MCHJ | H39: 308051113 | I39: dona | J39: 20 | K39: 6000 | L39: =+K39*J39 -> 120000
A40: 33 | C40: Bannerga chop etish xizmati | D40: budjetdan tashqari | E40: Elektron do`kon | F40: №3026660 Lot251110083579564 | G40: IDEA GRAPHICS OK | H40: 306370350 | I40: xizmat | J40: 48 | K40: 35000 | L40: =+K40*J40 -> 1680000
A41: 34 | C41: suyuq sovun | D41: budjetdan tashqari | E41: Elektron do`kon | F41: №B1075988 Lot25311008021673 | G41: MAXFRESH MCHJ | H41: 310993327 | I41: dona | J41: 50 | K41: 5000 | L41: 250000
A42: 35 | C42: Parashok | D42: budjetdan tashqari | E42: Elektron do`kon | F42: №B1075990 Lot25311008021679 | G42: MAXFRESH MCHJ | H42: 310993327 | I42: dona | J42: 50 | K42: 4222 | L42: 211100
A43: 36 | C43: Toner | D43: budjetdan tashqari | E43: Elektron do`kon | F43: №3030134 Lot251110083584810 | G43: YTT TEN DMITRIY SERAFIMOVICH | H43: 31910870160024. | I43: dona | J43: 20 | K43: 53000 | L43: 1060000
A44: 37 | C44: Polovaya tryapka | D44: budjetdan tashqari | E44: Elektron do`kon | F44: №3030180 Lot251110083584856 | G44: ООО BOBUR EXCLUSIVE QURILISH | H44: 305646687 | I44: dona | J44: 100 | K44: 5450 | L44: 545000
A45: 38 | C45: Xlor | D45: budjetdan tashqari | E45: Elektron do`kon | F45: №3030189 Lot251110083584869 | G45: YTT ULJATAYEV NURKEN NURALI O?G?LI | H45: 32807950560021. | I45: dona | J45: 50 | K45: 11800 | L45: 590000
A46: 39 | C46: Avtotransport vositasini ta'mirlash xizmati | D46: budjetdan tashqari | E46: Elektron do`kon | F46: №3043641 Lot251110083600598 | G46: AVTOMASTERTOP MCHJ | H46: 310952718 | I46: xizmat | J46: 1 | K46: 4187000 | L46: 4187000
A47: 40 | C47: Elektr energiya | D47: budjetdan tashqari | E47: Yagona etkazib beruvchi | F47: №54/2580/1 Lot251100103711243 | G47: Худудий электр тармоклари АЖ | H47: 306350099 | I47: kvt | J47: 25500 | K47: 1000 | L47: =+K47*J47 -> 25500000
A48: 41 | C48: Elektr energiya | D48: budjetdan tashqari | E48: Yagona etkazib beruvchi | F48: №53/124/1 Lot251100103710119 | G48: Худудий электр тармоклари АЖ | H48: 306350099 | I48: kvt | J48: 66500 | K48: 1000 | L48: =+K48*J48 -> 66500000
A49: 42 | C49: Elektr energiya | D49: budjetdan tashqari | E49: Yagona etkazib beruvchi | F49: №22/157/1 Lot251100103711492 | G49: Худудий электр тармоклари АЖ | H49: 306350099 | I49: kvt | J49: 36180 | K49: 1000 | L49: =+K49*J49 -> 36180000
A50: 43 | C50: Elektr energiya | D50: budjetdan tashqari | E50: Yagona etkazib beruvchi | F50: №59/41/1 Lot251100103711262 | G50: Худудий электр тармоклари АЖ | H50: 306350099 | I50: kvt | J50: 31000 | K50: 1000 | L50: 31000000
A51: 44 | C51: Gaz ballonlarni sinovdan o'tkarish | D51: budjetdan tashqari | E51: Elektron do`kon | F51: №3080435 Lot251110083644207 | G51: Х/К Nurafshon kelajak servis 2019 | H51: 306028884 | I51: kvt | J51: 4 | K51: 379000 | L51: =+K51*J51 -> 1516000
A52: 45 | C52: Elektr energiya | D52: budjetdan tashqari | E52: Yagona etkazib beruvchi | F52: №54/382 Lot251100103711364 | G52: Худудий электр тармоклари АЖ | H52: 306350099 | I52: kvt | J52: 13500 | K52: 1000 | L52: 13500000
A53: 46 | C53: Tabiiy gaz | D53: budjetdan tashqari | E53: Yagona etkazib beruvchi | F53: №213080416/1 Lot251100103718287 | G53: HUDUDGAZTA`MINOT AJ | H53: 306605769 | I53: м^3 | J53: 6600 | K53: 1800 | L53: 11880000
A54: 47 | C54: Elektr energiya | D54: budjetdan tashqari | E54: Yagona etkazib beruvchi | F54: №52/20 Lot251100103711383 | G54: Худудий электр тармоклари АЖ | H54: 306350099 | I54: kvt | J54: 13500 | K54: 1000 | L54: =+K54*J54 -> 13500000
A55: 48 | C55: Elektr energiya | D55: budjetdan tashqari | E55: Yagona etkazib beruvchi | F55: №22/159 Lot251100103711443 | G55: Худудий электр тармоклари АЖ | H55: 306350099 | I55: kvt | J55: 55000 | K55: 1000 | L55: =+K55*J55 -> 55000000
A56: 49 | C56: Tabiiy gaz | D56: budjetdan tashqari | E56: Yagona etkazib beruvchi | F56: №213052558/1 Lot251100103718539 | G56: HUDUDGAZTA`MINOT AJ | H56: 306605769 | I56: м^3 | J56: 7800 | K56: 1800 | L56: 14040000
A57: 50 | C57: Internet xizmati | D57: budjetdan tashqari | E57: PQ-3953 | F57: №12_1823/2900 Lot251100243711584 | G57: O`ZBEKTELEKOM AKSIYADORLIK JAMIYATI | H57: 203366731 | I57: xizmat | J57: 12 | K57: 915000 | L57: 10980000
A58: 51 | C58: Tabiiy gaz | D58: budjetdan tashqari | E58: Yagona etkazib beruvchi | F58: №2130720070/1 Lot251100103718713 | G58: HUDUDGAZTA`MINOT AJ | H58: 306605769 | I58: м^3 | J58: 9100 | K58: 1800 | L58: =+K58*J58 -> 16380000
A59: 52 | C59: Telefon xizmati | D59: budjetdan tashqari | E59: PQ-3953 | F59: №NAV/B2G-22823185 Lot251100243732519 | G59: O`ZBEKTELEKOM AKSIYADORLIK JAMIYATI | H59: 203366731 | I59: xizmat | J59: 9 | K59: 94840 | L59: 853560
A60: 53 | C60: Toner | D60: budjetdan tashqari | E60: Elektron do`kon | F60: №3030120 Lot251110083584797 | G60: SHERZOD STATIONERY Мчж | H60: 304815209 | I60: dona | J60: 50 | K60: 18000 | L60: =+K60*J60 -> 900000
A61: 54 | C61: Elektr energiya | D61: budjetdan tashqari | E61: Yagona etkazib beruvchi | F61: №55/26 Lot251100103711471 | G61: Худудий электр тармоклари АЖ | H61: 306350099 | I61: kvt | J61: 61000 | K61: 1000 | L61: =+K61*J61 -> 61000000
A62: 55 | C62: Elektr energiya | D62: budjetdan tashqari | E62: Yagona etkazib beruvchi | F62: №51/29 Lot251100103711347 | G62: Худудий электр тармоклари АЖ | H62: 306350099 | I62: kvt | J62: 26000 | K62: 1000 | L62: =+K62*J62 -> 26000000
A63: 56 | C63: Elektr energiya | D63: budjetdan tashqari | E63: Yagona etkazib beruvchi | F63: №56/57 Lot251100103711303 | G63: Худудий электр тармоклари АЖ | H63: 306350099 | I63: kvt | J63: 36500 | K63: 1000 | L63: =+K63*J63 -> 36500000
A64: 57 | C64: Tabbiy siqilgan gaz (metan) | D64: budjetdan tashqari | E64: PQ-3953 | F64: №6/1 Lot251100423688364 | G64: Зарафшон авто газМЧЖ | H64: 302025267 | I64: куб.м | J64: 1650 | K64: 3950 | L64: 6517500
A65: 58 | C65: Tabbiy siqilgan gaz (metan) | D65: budjetdan tashqari | E65: PQ-3953 | F65: №53/25/1 Lot251100423688171 | G65: Мухаммад Али Кувончи МЧЖ | H65: 301293237 | I65: куб.м | J65: 1650 | K65: 3800 | L65: 6270000
A66: 59 | C66: Tabbiy siqilgan gaz (metan) | D66: budjetdan tashqari | E66: PQ-3953 | F66: №8/1 Lot251100423688632 | G66: Зарафшон Файз Оил МЧЖ | H66: 301711048 | I66: куб.м | J66: 1650 | K66: 3950 | L66: 6517500
A67: 60 | C67: Tabbiy siqilgan gaz (metan) | D67: budjetdan tashqari | E67: PQ-3953 | F67: №2/1 Lot251100423688244 | G67: Karmana Alfa GaZ service МЧЖ | H67: 302189830 | I67: куб.м | J67: 1650 | K67: 3950 | L67: 6517500
A68: 61 | C68: Tabbiy siqilgan gaz (metan) | D68: budjetdan tashqari | E68: PQ-3953 | F68: №2/1 Lot251100423688397 | G68: ZARAFSHON GLASS МЧЖ | H68: 305063535 | I68: куб.м | J68: 1650 | K68: 3950 | L68: 6517500
A69: 62 | C69: Tabbiy siqilgan gaz (metan) | D69: budjetdan tashqari | E69: PQ-3953 | F69: №2/1 Lot251100423688464 | G69: OOO SPUTNIK AVTO SERVIS | H69: 301601073 | I69: куб.м | J69: 3300 | K69: 3950 | L69: 13035000
A70: 63 | C70: Elektr energiya | D70: budjetdan tashqari | E70: Yagona etkazib beruvchi | F70: №58/21 Lot251100103711431 | G70: Худудий электр тармоклари АЖ | H70: 306350099 | I70: kvt | J70: 43500 | K70: 1000 | L70: =+K70*J70 -> 43500000
A71: 64 | C71: Elektr energiya | D71: budjetdan tashqari | E71: Yagona etkazib beruvchi | F71: №52/21 Lot251100103711279 | G71: Худудий электр тармоклари АЖ | H71: 306350099 | I71: kvt | J71: 30000 | K71: 1000 | L71: 30000000
A72: 65 | C72: Elektr energiya | D72: budjetdan tashqari | E72: Yagona etkazib beruvchi | F72: №52/8 Lot251100103711455 | G72: Худудий электр тармоклари АЖ | H72: 306350099 | I72: kvt | J72: 49500 | K72: 1000 | L72: 49500000
A73: 66 | C73: Elektr energiya | D73: budjetdan tashqari | E73: Yagona etkazib beruvchi | F73: №22/158 Lot251100103711323 | G73: Худудий электр тармоклари АЖ | H73: 306350099 | I73: kvt | J73: 69000 | K73: 1000 | L73: 69000000
A74: 67 | C74: Elektr energiya | D74: budjetdan tashqari | E74: Yagona etkazib beruvchi | F74: №57/17 Lot251100103711409 | G74: Худудий электр тармоклари АЖ | H74: 306350099 | I74: kvt | J74: 86000 | K74: 1000 | L74: 86000000
A75: 68 | C75: Tabbiy siqilgan gaz (metan) | D75: budjetdan tashqari | E75: PQ-3953 | F75: №29/25/DXM/1 Lot251100423688781 | G75: ООО АСКОМЖ-ЗАРАФШОН | H75: 305917515 | I75: куб.м | J75: 1650 | K75: 3950 | L75: 6517500
A76: 69 | C76: Tabbiy siqilgan gaz (metan) | D76: budjetdan tashqari | E76: PQ-3953 | F76: №НДХМ/1 Lot251100423688970 | G76: METAN GAZ NUROTA мчж | H76: 302356393 | I76: куб.м | J76: 1650 | K76: 3950 | L76: 6517500
A77: 70 | C77: Tabbiy siqilgan gaz (metan) | D77: budjetdan tashqari | E77: PQ-3953 | F77: №25/1 Lot251100423689297 | G77: Uchquduq oil gaz invest МЧЖ | H77: 304966582 | I77: куб.м | J77: 1650 | K77: 3950 | L77: 6517500
A78: 71 | C78: Tabiiy gaz | D78: budjetdan tashqari | E78: Yagona etkazib beruvchi | F78: №213013410/1 Lot251100103718464 | G78: HUDUDGAZTA`MINOT AJ | H78: 306605769 | I78: м^3 | J78: 14000 | K78: 1800 | L78: 25200000
A79: 72 | C79: Tabiiy gaz | D79: budjetdan tashqari | E79: Yagona etkazib beruvchi | F79: №213051715/1 Lot251100103718609 | G79: HUDUDGAZTA`MINOT AJ | H79: 306605769 | I79: м^3 | J79: 17000 | K79: 1800 | L79: =+K79*J79 -> 30600000
A80: 73 | C80: Tabiiy gaz | D80: budjetdan tashqari | E80: Yagona etkazib beruvchi | F80: №2130720074/1 Lot251100103718400 | G80: HUDUDGAZTA`MINOT AJ | H80: 306605769 | I80: м^3 | J80: 3600 | K80: 1800 | L80: =+K80*J80 -> 6480000
A81: 74 | C81: Internet xizmati | D81: budjetdan tashqari | E81: PQ-3953 | F81: №NAV/B2B SME-20856929 Lot251100243711573 | G81: O`ZBEKTELEKOM AKSIYADORLIK JAMIYATI | H81: 203366731 | I81: xizmat | J81: 12 | K81: 7245000 | L81: 86940000
A82: 75 | C82: Telefon xizmati | D82: budjetdan tashqari | E82: PQ-3953 | F82: №699 Lot251100243732487 | G82: O`ZBEKTELEKOM AKSIYADORLIK JAMIYATI | H82: 203366731 | I82: xizmat | J82: 12 | K82: 475190 | L82: 5702280
A83: 76 | C83: Perfovirovonnaya bumaga | D83: budjetdan tashqari | E83: Elektron do`kon | F83: №3030108 Lot251110083584781 | G83: SHERZOD STATIONERY Мчж | H83: 304815209 | I83: dona | J83: 100 | K83: 35000 | L83: =+K83*J83 -> 3500000
A84: 77 | C84: Maslo matornoye | D84: budjetdan tashqari | E84: Elektron do`kon | F84: №3037760 Lot251110083593777 | G84: MATORMARKET MCHJ | H84: 310679859 | I84: dona | J84: 80 | K84: 61000 | L84: =+K84*J84 -> 4880000
A85: 78 | C85: JPS xizmati | D85: budjetdan tashqari | E85: PQ-3953 | F85: №70/0125 Lot251101123908805 | G85: NAVOIY AKT AVTOMATIKA МЧЖ | H85: 304521187 | I85: xizmat | J85: 180 | K85: 45360 | L85: =+K85*J85 -> 8164800
A86: 79 | C86: Karta flesh pamyati | D86: budjetdan tashqari | E86: Elektron do`kon | F86: №3072335 Lot251110083634851 | G86: BUNTECH MCHJ | H86: 311848433 | I86: dona | J86: 3000 | K86: 13950 | L86: =+K86*J86 -> 41850000
A87: 80 | C87: Avtotransportni ta'mirlash xizmati | D87: budjetdan tashqari | E87: Elektron do`kon | F87: №3074712 Lot251110083637567 | G87: AVTO-SERVIS-222 MCHJ | H87: 309898370 | I87: xizmat | J87: 1 | K87: 5915000 | L87: =+K87*J87 -> 5915000
A88: 81 | C88: 2025y obuna | D88: budjetdan tashqari | E88: PQ-3953 | F88: №NV-25/01 Lot251100363725311 | G88: АДОЛАТ нашриёти ДК | H88: 201453166 | I88: xizmat | J88: 430 | K88: 375000 | L88: 161250000
A89: 82 | C89: Bannerga chop etish xizmati | D89: budjetdan tashqari | E89: Milliy do'kon | F89: №2939058 Lot251110083474013 | G89: Ходжиев Намозбек Ниёзович ЯТТ | H89: 453447741 | I89: xizmat | J89: 15 | K89: 150000 | L89: =+K89*J89 -> 2250000
A90: 83 | C90: Qalam | D90: budjetdan tashqari | E90: Elektron do`kon | F90: №2953810 Lot251110083494456 | G90: ООО KANS MIR NAVOIY | H90: 308067400 | I90: dona | J90: 210 | K90: 900 | L90: =+K90*J90 -> 189000
A91: 84 | C91: Ruchka | D91: budjetdan tashqari | E91: Elektron do`kon | F91: №B1067483 Lot25311008007735 | G91: ООО AZIZ-LAZIZ GOLDEN GROUP | H91: 308396499 | I91: dona | J91: 550 | K91: 3000 | L91: =+K91*J91 -> 1650000
A92: 85 | C92: kley | D92: budjetdan tashqari | E92: Elektron do`kon | F92: №B1067498 Lot25311008007848 | G92: ООО AZIZ-LAZIZ GOLDEN GROUP | H92: 308396499 | I92: dona | J92: 195 | K92: 10500 | L92: =+K92*J92 -> 2047500
A93: 86 | C93: Marker | D93: budjetdan tashqari | E93: Elektron do`kon | F93: №2954083 Lot251110083494791 | G93: ООО MY OFFICE STATIONERY | H93: 307048170 | I93: dona | J93: 200 | K93: 8625 | L93: =+K93*J93 -> 1725000
A94: 87 | C94: Skrepka | D94: budjetdan tashqari | E94: Elektron do`kon | F94: №2954218 Lot251110083494932 | G94: OOOPOWER MAX GROUP | H94: 303055063 | I94: dona | J94: 210 | K94: 3472 | L94: =+K94*J94 -> 729120
A95: 88 | C95: Skrepka | D95: budjetdan tashqari | E95: Elektron do`kon | F95: №B1067549 Lot25311008007856 | G95: Канц-Маркет тижорат корхонаси | H95: 204387372 | I95: dona | J95: 210 | K95: 18000 | L95: =+K95*J95 -> 3780000
A96: 89 | C96: Bumaga dlya zametok | D96: budjetdan tashqari | E96: Elektron do`kon | F96: №B1067552 Lot25311008007900 | G96: Канц-Маркет тижорат корхонаси | H96: 204387372 | I96: dona | J96: 105 | K96: 18000 | L96: =+K96*J96 -> 1890000
A97: 90 | C97: Ichimlik suvi | D97: budjetdan tashqari | E97: Yagona etkazib beruvchi | F97: №26x Lot251100103757135 | G97: Навоий сув таминот МЧЖ | H97: 300024824 | I97: м^3 | J97: 120 | K97: 7280 | L97: 873600
A98: 91 | C98: Ichimlik suvi va kanalizasiya | D98: budjetdan tashqari | E98: Yagona etkazib beruvchi | F98: №955FHD-25 Lot251100103757385 | G98: Навоий сув таминот МЧЖ | H98: 300024824 | I98: m3 | J98: 360 | K98: 12432 | L98: 4475520
A99: 92 | C99: Ichimlik suvi va kanalizasiya | D99: budjetdan tashqari | E99: Yagona etkazib beruvchi | F99: №955-DXM-25 Lot251100103757310 | G99: Навоий сув таминот МЧЖ | H99: 300024824 | I99: m3 | J99: 1440 | K99: 12432 | L99: =+K99*J99 -> 17902080
A100: 93 | C100: Ichimlik suvi va kanalizasiya | D100: budjetdan tashqari | E100: Yagona etkazib beruvchi | F100: №02/31 Lot251100103757025 | G100: Навоий сув таминот МЧЖ | H100: 300024824 | I100: m3 | J100: 165 | K100: 12432 | L100: =+K100*J100 -> 2051280
A101: 94 | C101: Ichimlik suvi | D101: budjetdan tashqari | E101: Yagona etkazib beruvchi | F101: №35-Q-2025 Lot251100103756869 | G101: Навоий сув таминот МЧЖ | H101: 300024824 | I101: м^3 | J101: 330 | K101: 7280 | L101: 2402400
A102: 95 | C102: Skoba | D102: budjetdan tashqari | E102: Elektron do`kon | F102: №B1067695 Lot25311008007853 | G102: HAFELE CO MCHJ | H102: 308051113 | I102: dona | J102: 210 | K102: 3777 | L102: 793170
A103: 96 | C103: Ichimlik suvi | D103: budjetdan tashqari | E103: Yagona etkazib beruvchi | F103: №25/42 Lot251100103756695 | G103: Навоий сув таминот МЧЖ | H103: 300024824 | I103: м^3 | J103: 300 | K103: 7280 | L103: =+K103*J103 -> 2184000
A104: 97 | C104: Ichimlik suvi | D104: budjetdan tashqari | E104: Yagona etkazib beruvchi | F104: №25/24 Lot251100103756765 | G104: Навоий сув таминот МЧЖ | H104: 300024824 | I104: м^3 | J104: 365 | K104: 7280 | L104: =+K104*J104 -> 2657200
A105: 98 | C105: Mebel tamirlash xizmati | D105: budjetdan tashqari | E105: Elektron do`kon | F105: №3004184 Lot251110083554790 | G105: Навоий вил. Формула уютамчж | H105: 301183666 | I105: xizmat | J105: 1 | K105: 2560000 | L105: 2560000
A106: 99 | C106: Mebel tamirlash xizmati | D106: budjetdan tashqari | E106: Elektron do`kon | F106: №3004186 Lot251110083554794 | G106: Навоий вил. Формула уютамчж | H106: 301183666 | I106: xizmat | J106: 1 | K106: 1600000 | L106: =+K106*J106 -> 1600000
A107: 100 | C107: Mebel tamirlash xizmati | D107: budjetdan tashqari | E107: Elektron do`kon | F107: №3004169 Lot251110083554772 | G107: Навоий вил. Формула уютамчж | H107: 301183666 | I107: xizmat | J107: 1 | K107: 2240000 | L107: 2240000
A108: 101 | C108: Maslo matornoye | D108: budjetdan tashqari | E108: Elektron do`kon | F108: №3037752 Lot251110083593763 | G108: MATORMARKET MCHJ | H108: 310679859 | I108: dona | J108: 120 | K108: 61000 | L108: =+K108*J108 -> 7320000
A109: 102 | C109: Temir stoyka tayyorlash xizmati | D109: budjetdan tashqari | E109: Elektron do`kon | F109: №3051009 Lot251110083609414 | G109: NAVOIY KADASTR MCHJ | H109: 305607402 | I109: xizmat | J109: 8 | K109: 400000 | L109: =+K109*J109 -> 3200000
